bitfinex/quotes_ETHUSD_20220115
["timestamp","ask_amount","ask_price","bid_price","bid_amount"]
[1642266469926,1.9867474,3355.6,3355.4,0.74486]
[1642266470728,1.9867474,3355.6,3355.3,0.00113685]
[1642266470928,2.54816019,3355.5,3355.3,0.00113685]
[1642266471675,2.27754019,3355.5,3355.3,0.00113685]
[1642266471873,1.9761674,3355.6,3355.3,0.00113685]
[1642266473074,2.7531674,3355.6,3355.3,0.00113685]
[1642266473873,2.7151774,3355.6,3355.3,0.00113685]
[1642266474074,2.6527374,3355.6,3355.3,0.00113685]
[1642266474273,0.1192,3355.5,3355.3,0.00113685]
[1642266475535,0.1192,3355.5,3355.1,0.00227369]
[1642266476136,0.08010467,3355.5,3355.1,0.00227369]
[1642266476335,0.08010467,3355.5,3355.0,0.00284212]
[1642266476336,0.85710467,3355.5,3355.0,0.00284212]
[1642266477541,0.777,3355.5,3355.0,0.00284212]
[1642266478338,0.777,3355.5,3355.1,0.03403056]
[1642266478539,0.777,3355.5,3355.0,0.00284212]
[1642266478797,0.777,3355.5,3355.2,0.00170527]
[1642266478990,0.777,3355.5,3355.0,0.00284212]
[1642266479688,1.554,3355.5,3355.0,0.00284212]
[1642266480289,0.1192,3355.4,3355.0,0.00284212]
[1642266481590,1.6732,3355.5,3355.0,0.00284212]
[1642266482639,4.3403825,3355.5,3355.0,0.00284212]
[1642266483138,2.4502,3355.5,3355.0,0.00284212]
[1642266484737,4.36686666,3355.5,3355.0,0.00284212]
[1642266485439,4.36686666,3355.5,3354.9,0.00341054]
[1642266485943,5.14386666,3355.5,3354.9,0.00341054]
[1642266486375,3.2272,3355.5,3354.9,0.00341054]
[1642266486975,2.11956521,3355.4,3354.9,0.00341054]
[1642266487175,0.1192,3355.3,3354.9,0.00341054]
[1642266489176,0.8962,3355.3,3354.9,0.00341054]
[1642266489377,2.02211221,3355.2,3354.9,0.00341054]
[1642266489778,0.8962,3355.3,3354.9,0.00341054]
[1642266491032,1.91798606,3355.2,3354.9,0.00341054]
[1642266491833,0.777,3355.3,3354.9,0.00341054]
[1642266492433,1.88804148,3355.2,3354.9,0.00341054]
[1642266492634,2.5487603,3355.1,3354.9,0.00341054]
[1642266493435,1.34297234,3355.0,3354.9,0.00341054]
[1642266494678,3.89173264,3355.0,3354.9,0.00341054]
[1642266495078,7.64173264,3355.0,3354.9,0.00341054]
[1642266495684,8.41873264,3355.0,3354.9,0.00341054]
[1642266495878,4.66873264,3355.0,3354.9,0.00341054]
[1642266498832,5.44573264,3355.0,3354.9,0.00341054]
[1642266500132,7.42174031,3355.0,3354.9,0.00341054]
[1642266500334,5.44573264,3355.0,3354.9,0.00341054]
[1642266500836,7.53183609,3355.0,3354.9,0.00341054]
[1642266501043,16.68183609,3355.0,3354.9,0.00341054]
[1642266501680,7.53183609,3355.0,3354.9,0.00341054]
[1642266501880,11.13183609,3355.0,3354.9,0.00341054]
[1642266502079,11.90883609,3355.0,3354.9,0.00341054]
[1642266503080,8.30883609,3355.0,3354.9,0.00341054]
[1642266503282,6.34193264,3355.0,3354.9,0.00341054]
[1642266503482,8.37591322,3355.0,3354.9,0.00341054]
[1642266503881,14.42591322,3355.0,3354.9,0.00341054]
[1642266504283,12.39193264,3355.0,3354.9,0.00341054]
[1642266504485,6.34193264,3355.0,3354.9,0.00341054]
[1642266504684,6.22273264,3355.0,3354.9,0.00341054]
[1642266504885,11.87273264,3355.0,3354.9,0.00341054]
[1642266505135,6.22273264,3355.0,3354.9,0.00341054]
[1642266505338,6.99973264,3355.0,3354.9,0.00341054]
[1642266506636,8.88356479,3355.0,3354.9,0.00341054]
[1642266506937,8.9591663,3355.0,3354.9,0.00341054]
[1642266507536,6.99973264,3355.0,3354.9,0.00341054]
[1642266508151,17.06071861,3354.9,3354.0,0.1192]
[1642266508339,0.01277319,3354.7,3354.0,0.1192]
[1642266508539,0.1192,3354.6,3354.1,0.00454739]
[1642266509189,1.35172582,3354.4,3354.1,0.00454739]
[1642266509388,0.1192,3354.3,3354.1,0.00454739]
[1642266509589,0.1192,3354.3,3353.6,0.119365]
[1642266509590,13.9,3354.2,3353.6,0.119365]
[1642266509788,0.1192,3354.1,3353.6,0.119365]
[1642266509990,0.1192,3354.1,3353.7,0.00227369]
[1642266510397,3.75906116,3354.3,3353.7,0.00227369]
[1642266510692,7.79671328,3354.3,3353.7,0.00227369]
[1642266511290,2.5487603,3354.2,3353.7,0.00227369]
[1642266511691,3.3257603,3354.2,3353.7,0.00227369]
[1642266513030,2.5487603,3354.1,3353.7,0.00227369]
[1642266513230,0.1192,3354.0,3353.7,0.00227369]
[1642266513630,2.29572114,3354.0,3353.7,0.00227369]
[1642266514232,2.5487603,3353.9,3353.7,0.00227369]
[1642266514431,1.99548387,3353.8,3353.7,0.00227369]
[1642266514631,1.89912143,3353.8,3353.7,0.00227369]
[1642266514835,0.777,3353.8,3353.7,0.00227369]
[1642266515032,2.6798822,3353.8,3353.7,0.00227369]
[1642266515433,4.16926908,3353.8,3353.7,0.00227369]
[1642266515632,2.24132977,3353.8,3353.7,0.00227369]
[1642266515835,4.79009007,3353.8,3353.7,0.00227369]
[1642266518081,5.56709007,3353.8,3353.7,0.00227369]
[1642266520133,5.56709007,3353.8,3353.6,0.07163869]
[1642266520334,1.94267515,3353.7,3353.6,0.07163869]
[1642266520832,5.56709007,3353.8,3353.6,0.07163869]
[1642266521034,5.56709007,3353.8,3353.6,0.02163869]
[1642266521233,6.34409007,3353.8,3353.6,0.02163869]
[1642266521434,2.5487603,3353.7,3353.6,0.02163869]
[1642266521636,4.48141595,3353.7,3353.6,0.02163869]
[1642266523333,2.5487603,3353.7,3353.6,0.02163869]
[1642266523799,2.6679603,3353.7,3353.6,0.02163869]
[1642266524383,3.4449603,3353.7,3353.6,0.02163869]
[1642266524787,5.33867099,3353.7,3353.6,0.02163869]
[1642266524983,5.34332147,3353.7,3353.6,0.02163869]
[1642266525384,3.4449603,3353.7,3353.6,0.02163869]
[1642266526886,5.37181273,3353.7,3353.6,0.02163869]
[1642266527088,3.4449603,3353.7,3353.6,0.02163869]
[1642266527738,4.2219603,3353.7,3353.6,0.02163869]
[1642266528734,6.14727675,3353.7,3353.6,0.02163869]
[1642266529236,4.2219603,3353.7,3353.6,0.02163869]
[1642266529835,6.14324633,3353.7,3353.6,0.02163869]
[1642266530842,4.2219603,3353.7,3353.6,0.02163869]
[1642266531042,6.92739691,3353.7,3353.6,0.02163869]
[1642266531487,4.9989603,3353.7,3353.6,0.02163869]
[1642266531688,6.92784989,3353.7,3353.6,0.02163869]
[1642266531888,6.91660549,3353.7,3353.6,0.02163869]
[1642266532088,4.9989603,3353.7,3353.6,0.02163869]
[1642266534290,5.7759603,3353.7,3353.6,0.02163869]
[1642266534898,5.6567603,3353.7,3353.6,0.02163869]
[1642266535138,5.6567603,3353.7,3352.8,3.7031]
[1642266535535,5.6567603,3353.7,3352.9,0.00454739]
[1642266536337,1.1836757,3353.0,3352.9,0.00454739]
[1642266536736,1.11394344,3353.0,3352.7,0.00568424]
[1642266537541,1.89094344,3353.0,3352.7,0.00568424]
[1642266538138,1.49860916,3352.9,3352.7,0.00568424]
[1642266538542,18.0,3352.8,3352.7,0.00568424]
[1642266538798,0.1193,3352.8,3351.4,3.6447]
[1642266538986,0.045463,3352.5,3351.4,3.6447]
[1642266539186,0.1193,3352.4,3351.5,0.00682108]
[1642266539389,0.1193,3352.4,3351.4,3.45152108]
[1642266539390,2.72556759,3352.3,3351.4,3.45152108]
[1642266539587,2.72556759,3352.3,3351.4,3.35152108]
[1642266539791,0.00397897,3352.2,3351.4,3.35152108]
[1642266540195,0.00341054,3352.1,3351.4,3.35152108]
[1642266540489,2.72556759,3352.3,3350.9,1.8239021]
[1642266540490,0.00284212,3352.0,3350.9,1.8239021]
[1642266540688,0.00284212,3352.0,3350.9,1.7046021]
[1642266540888,0.0022737,3351.9,3351.0,0.00284211]
[1642266541288,0.00170527,3351.8,3351.0,0.00284211]
[1642266541490,1.38219838,3351.7,3350.9,1.50744421]
[1642266541689,1.46774526,3351.6,3350.9,1.50744421]
[1642266541889,1.4711558,3351.6,3350.9,1.50744421]
[1642266542089,0.00284211,3351.5,3350.9,1.50744421]
[1642266542535,0.00227369,3351.4,3350.9,1.50744421]
[1642266542935,0.00170527,3351.3,3350.9,1.50744421]
[1642266543337,0.00113684,3351.2,3350.9,1.50744421]
[1642266543736,1.13822231,3351.1,3350.9,1.50744421]
[1642266544937,1.49559476,3351.0,3350.9,1.50744421]
[1642266545349,13.45,3350.8,3350.2,0.1193]
[1642266545542,0.045463,3350.8,3350.2,0.1193]
[1642266545739,0.1193,3350.7,3350.3,0.00397897]
[1642266546040,0.045463,3350.8,3349.8,0.12612109]
[1642266546301,0.045463,3350.8,3349.8,0.07612109]
[1642266546493,0.045463,3350.8,3350.0,1.49199]
[1642266546893,0.045463,3350.8,3350.1,0.00511582]
[1642266547091,0.822463,3350.8,3350.1,0.00511582]
[1642266547290,2.09646809,3350.8,3350.0,1.34710582]
[1642266547493,0.00341054,3350.7,3350.0,1.34710582]
[1642266547791,2.09646809,3350.8,3350.0,1.34710582]
[1642266547792,0.00284212,3350.6,3350.0,1.34710582]
[1642266548194,0.0022737,3350.5,3350.0,1.34710582]
[1642266548391,0.0022737,3350.5,3349.7,0.1193]
[1642266548592,0.164763,3350.7,3349.7,0.1193]
[1642266548593,0.00170527,3350.4,3349.7,0.1193]
[1642266548793,1.15339666,3350.1,3349.9,0.7461]
[1642266549096,1.39391908,3350.3,3349.9,0.7461]
[1642266549292,1.39391908,3350.3,3350.0,0.1193]
[1642266549492,1.39278223,3350.3,3349.8,0.12100527]
[1642266549895,1.39278223,3350.3,3350.1,1.49199]
[1642266550348,2.16978223,3350.3,3350.1,1.49199]
[1642266550850,0.00284212,3350.6,3350.1,1.92099]
[1642266551248,0.045463,3350.7,3350.1,1.92099]
[1642266551249,1.47423884,3350.5,3350.1,1.92099]
[1642266551654,0.00170527,3350.4,3350.1,1.92099]
[1642266552050,1.47196514,3350.5,3350.1,1.92099]
[1642266552455,1.47196514,3350.5,3350.2,0.74589]
[1642266553161,1.47196514,3350.5,3350.1,1.92099]
[1642266553554,2.24896514,3350.5,3350.0,0.74598]
[1642266553801,0.1193,3350.4,3350.0,0.74598]
[1642266553990,0.1193,3350.4,3350.1,0.00113684]
[1642266555190,2.24896514,3350.5,3350.0,0.69711684]
[1642266555390,0.00113684,3350.3,3350.0,0.69711684]
[1642266556790,0.77813684,3350.3,3350.0,0.69711684]
[1642266557544,0.77813684,3350.3,3349.6,1.92117]
[1642266557742,0.1194,3350.2,3349.6,1.92117]
[1642266557943,0.1194,3350.2,3349.7,0.0022737]
[1642266558349,0.1194,3350.2,3349.8,1.49209]
[1642266558543,0.77813684,3350.3,3349.8,1.92109]
[1642266558743,0.77813684,3350.3,3349.9,0.12053685]
[1642266559044,0.77813684,3350.3,3349.9,0.00113685]
[1642266559843,0.1193,3350.2,3349.9,0.00113685]
[1642266560343,0.1193,3350.2,3350.0,0.74609]
[1642266560545,2.17182659,3350.2,3349.8,0.00170528]
[1642266560748,0.1193,3350.2,3349.8,0.00170528]
[1642266560953,0.1193,3350.2,3349.4,0.00397897]
[1642266561145,0.1193,3350.2,3349.4,0.75007467]
[1642266561422,0.1193,3350.2,3349.4,2.20399165]
[1642266561617,0.1193,3350.2,3349.5,0.00341055]
[1642266561815,0.1193,3350.2,3349.6,0.74617]
[1642266563315,0.8963,3350.2,3349.6,0.74617]
[1642266564315,1.483637,3350.1,3349.6,0.74617]
[1642266565547,1.483637,3350.1,3349.4,0.00397897]
[1642266565746,0.1194,3350.0,3349.4,0.00397897]
[1642266566150,0.1194,3350.0,3349.3,0.74623]
[1642266566346,0.1194,3350.0,3349.4,0.00397897]
[1642266566546,1.097683,3349.9,3349.4,0.00397897]
[1642266566748,0.1194,3349.8,3349.4,0.00397897]
[1642266567545,0.1194,3349.8,3349.3,0.70020897]
[1642266567748,0.00170527,3349.7,3349.3,0.70020897]
[1642266568147,0.00113685,3349.6,3349.3,0.70020897]
[1642266568550,1.16444341,3349.5,3349.1,10.9704]
[1642266568809,1.16444341,3349.5,3349.0,1.92144]
[1642266569000,1.16444341,3349.5,3349.2,0.00113685]
[1642266569801,1.94144341,3349.5,3349.2,0.00113685]
[1642266569999,0.1194,3349.4,3348.9,0.07053685]
[1642266570199,0.1194,3349.4,3348.7,1.49257]
[1642266570398,1.17275222,3349.3,3349.0,0.00113684]
[1642266570600,1.17275222,3349.3,3348.8,0.00227369]
[1642266571604,1.17275222,3349.3,3348.9,0.74628]
[1642266571805,1.17275222,3349.3,3348.9,0.69628]
[1642266572206,1.17275222,3349.3,3348.8,0.00227369]
[1642266572408,0.1194,3349.2,3348.8,0.00227369]
[1642266572647,0.164863,3349.2,3348.8,0.00227369]
[1642266572845,0.164863,3349.2,3348.8,0.74634]
[1642266573041,0.941863,3349.2,3348.8,0.74634]
[1642266573242,0.941863,3349.2,3348.9,0.00170527]
[1642266573443,1.21835472,3349.0,3348.9,0.00170527]
[1642266573843,1.21835472,3349.0,3348.7,0.00284211]
[1642266575043,0.1194,3348.9,3348.7,0.00284211]
[1642266575745,0.1194,3349.1,3348.7,0.00284211]
[1642266576396,2.26779148,3349.1,3348.7,0.00284211]
[1642266577000,0.8964,3349.1,3348.7,0.00284211]
[1642266578397,0.8964,3349.1,3348.7,0.74919211]
[1642266578798,0.8964,3349.1,3348.8,0.00227369]
[1642266579699,1.6734,3349.1,3348.8,0.00227369]
[1642266580945,1.6734,3349.1,3348.7,0.00284211]
[1642266581350,1.6734,3349.1,3348.4,1.4927]
[1642266581351,0.01038045,3349.0,3348.4,1.44554211]
[1642266581548,0.1194,3348.9,3348.5,0.00113685]
[1642266581750,0.00113684,3348.9,3348.5,0.00113685]
[1642266582450,0.00113684,3348.9,3348.6,0.429]
[1642266582649,0.00113684,3348.9,3348.6,0.329]
[1642266582846,0.77813684,3348.9,3348.6,0.329]
[1642266583450,0.77813684,3348.9,3348.6,1.07534]
[1642266584195,0.77813684,3348.9,3348.6,0.329]
[1642266584794,0.89753684,3348.9,3348.6,0.329]
[1642266585993,1.67453684,3348.9,3348.6,0.329]
[1642266587556,0.51080037,3348.8,3348.6,0.289]
[1642266587745,0.1194,3348.7,3348.6,0.289]
[1642266587947,1.34704339,3348.7,3348.6,0.289]
[1642266588247,1.34704339,3348.7,3348.5,0.00113685]
[1642266588449,1.22764339,3348.7,3348.5,0.00113685]
[1642266588647,1.22764339,3348.7,3348.4,0.00170527]
[1642266588848,1.22764339,3348.7,3348.3,0.119298]
[1642266589146,1.22764339,3348.7,3348.4,0.00170527]
[1642266589349,1.38145141,3348.6,3348.4,0.00170527]
[1642266589553,0.1194,3348.6,3348.4,0.00170527]
[1642266589948,2.00464339,3348.7,3348.4,0.00170527]
[1642266591299,2.55246244,3348.6,3348.4,0.00170527]
[1642266592004,2.59792544,3348.6,3348.4,0.00170527]
[1642266592600,3.49432544,3348.6,3348.4,0.00170527]
[1642266593404,2.55246244,3348.5,3348.4,0.00170527]
[1642266593704,2.55246244,3348.5,3348.4,1.49442527]
[1642266594504,0.777,3348.6,3348.4,1.49442527]
[1642266595149,0.777,3348.6,3348.4,0.00170527]
[1642266595748,1.554,3348.6,3348.4,0.00170527]
[1642266596349,1.554,3348.6,3348.3,0.07100327]
[1642266596748,1.554,3348.6,3348.2,0.74647]
[1642266596949,1.554,3348.6,3348.3,0.10480958]
[1642266597256,1.718863,3348.6,3348.2,0.74647]
[1642266597451,1.599463,3348.6,3348.2,0.74647]
[1642266597649,1.599463,3348.6,3348.2,0.60127958]
[1642266597851,1.599463,3348.6,3348.3,0.10480958]
[1642266598051,0.045463,3348.4,3348.3,0.10480958]
[1642266598253,1.20737531,3348.4,3348.3,0.10480958]
[1642266598451,1.20737531,3348.4,3348.3,0.0733667]
[1642266598909,1.20737531,3348.4,3348.1,0.0733667]
[1642266599109,1.98437531,3348.4,3348.1,0.0733667]
[1642266599316,4.53705183,3348.4,3348.2,0.74757685]
[1642266599509,4.49158883,3348.4,3348.2,0.74757685]
[1642266599710,4.49158883,3348.4,3348.3,0.0733667]
[1642266600112,1.93891231,3348.4,3348.3,0.0733667]
[1642266600510,1.28785441,3348.4,3348.3,0.0733667]
[1642266600910,1.28785441,3348.4,3348.3,0.0714757]
[1642266601112,1.28785441,3348.4,3348.2,0.00113685]
[1642266601310,1.28785441,3348.4,3348.3,0.0733667]
[1642266601510,3.84066858,3348.4,3348.3,0.0733667]
[1642266601910,3.32981417,3348.4,3348.3,0.0733667]
[1642266602312,4.10681417,3348.4,3348.3,0.0733667]
[1642266602561,1.554,3348.6,3348.4,1.49261]
[1642266602946,1.554,3348.6,3348.4,1.92161]
[1642266603348,3.86083251,3348.5,3348.4,1.92161]
[1642266603549,0.51083251,3348.5,3348.4,1.92161]
[1642266603751,4.76083251,3348.5,3348.4,0.429]
[1642266603950,0.55629551,3348.5,3348.4,0.429]
[1642266604351,0.51083251,3348.5,3348.4,0.429]
[1642266605451,1.28783251,3348.5,3348.4,0.429]
[1642266605651,1.28783251,3348.5,3348.4,1.17534]
[1642266606501,1.28783251,3348.5,3348.4,4.17534]
[1642266607502,0.777,3348.5,3348.4,4.17534]
[1642266608103,0.777,3348.5,3348.4,3.429]
[1642266608704,1.554,3348.5,3348.4,3.429]
[1642266609106,1.554,3348.5,3348.4,4.17535]
[1642266609307,1.554,3348.6,3348.4,4.17535]
[1642266609607,1.554,3348.6,3348.5,1.52547793]
[1642266609807,2.00464339,3348.7,3348.5,0.429]
[1642266610060,0.00113684,3348.6,3348.5,0.44193279]
[1642266610455,2.00464339,3348.7,3348.5,1.18815129]
[1642266610857,1.554,3348.9,3348.5,1.18815129]
[1642266611252,0.00113685,3348.8,3348.5,1.18815129]
[1642266611850,0.77813685,3348.8,3348.5,1.18815129]
[1642266612452,1.554,3348.9,3348.7,7.0]
[1642266612654,1.554,3348.9,3348.8,0.46410093]
[1642266612852,1.554,3348.9,3348.8,1.32959093]
[1642266613056,5.42048,3349.4,3348.8,1.44879093]
[1642266613252,1.48775497,3349.7,3348.9,1.6115361]
[1642266613453,0.00113685,3349.0,3348.9,1.75947498]
[1642266613651,1.48775497,3349.7,3349.1,1.49207]
[1642266613897,1.46605743,3349.4,3349.2,1.17503]
[1642266614098,0.00227369,3349.4,3349.2,1.17503]
[1642266614497,0.164863,3349.9,3349.2,1.17503]
[1642266614696,0.164863,3349.9,3349.4,0.03862289]
[1642266614902,0.00113685,3349.6,3349.5,1.92106]
[1642266615502,1.25575494,3349.6,3349.5,1.92106]
[1642266615803,0.00113685,3349.6,3349.5,3.80035984]
[1642266615997,0.777,3349.9,3349.5,3.80035984]
[1642266616397,0.777,3349.9,3349.5,1.92106]
[1642266616398,0.00113684,3349.8,3349.5,1.92106]
[1642266617861,0.777,3349.9,3349.5,3.85859963]
[1642266618061,0.777,3349.9,3349.6,0.00113685]
[1642266618263,1.554,3349.9,3349.7,0.429]
[1642266619465,1.554,3349.9,3349.7,1.17502]
[1642266619664,1.10467882,3349.8,3349.7,1.17502]
[1642266619864,1.554,3349.9,3349.7,1.17502]
[1642266620065,1.554,3349.9,3349.8,1.87282972]
[1642266620264,0.777,3350.0,3349.8,2.30182972]
[1642266620466,0.777,3350.0,3349.9,1.87693474]
[1642266620665,0.777,3350.0,3349.9,2.30593474]
[1642266620865,0.00113685,3350.0,3349.9,3.39442399]
[1642266621298,0.00113685,3350.0,3349.9,4.91787463]
[1642266621499,1.48775497,3350.4,3349.9,5.91787463]
[1642266621802,0.00113685,3350.2,3350.0,0.74585]
[1642266622002,0.777,3350.5,3350.1,2.43124502]
[1642266622199,0.777,3350.5,3350.1,3.21463388]
[1642266622399,0.00113684,3350.4,3350.1,3.21463388]
[1642266622601,0.00113684,3350.4,3350.1,3.17707472]
[1642266622799,0.777,3350.5,3350.1,3.17707472]
[1642266623002,2.55206504,3350.4,3350.2,0.74696685]
[1642266623201,0.747,3350.5,3350.3,1.87858032]
[1642266623401,0.747,3350.5,3350.4,0.74581]
[1642266623606,0.747,3350.5,3350.4,3.14955093]
[1642266624205,0.1194,3350.7,3350.4,3.18684001]
[1642266624404,0.1194,3350.7,3350.5,1.11119506]
[1642266624609,1.48775497,3351.0,3350.6,2.36497076]
[1642266624807,1.48775497,3351.0,3350.6,3.12877076]
[1642266625054,0.00170527,3350.7,3350.6,3.12877076]
[1642266625250,1.48775497,3351.2,3350.7,0.74574]
[1642266625448,1.48775497,3351.2,3350.8,0.429]
[1642266625649,0.00113685,3350.9,3350.8,0.429]
[1642266626151,0.00113685,3350.9,3350.8,2.31861038]
[1642266626948,0.00113685,3350.9,3350.8,2.33387347]
[1642266627148,0.00113685,3350.9,3350.8,0.429]
[1642266627549,0.00113685,3350.9,3350.8,2.31934819]
[1642266627949,1.28868948,3350.9,3350.8,2.31934819]
[1642266628149,0.045463,3351.4,3350.8,2.31934819]
[1642266628548,0.0022737,3351.3,3350.8,2.31934819]
[1642266629006,0.00170527,3351.2,3350.8,4.06503839]
[1642266629204,0.00170527,3351.2,3350.8,4.35663839]
[1642266629401,0.00113685,3351.1,3350.8,3.79424819]
[1642266629701,0.00284212,3351.4,3350.8,3.79424819]
[1642266629905,0.00284212,3351.4,3350.8,4.83994819]
[1642266630200,0.00284212,3351.4,3350.8,3.83994819]
[1642266630401,0.00284212,3351.4,3350.8,4.870958]
[1642266630600,0.00284212,3351.4,3350.9,1.17988323]
[1642266630801,0.00284212,3351.4,3351.0,2.3372397]
[1642266631001,0.00284212,3351.4,3351.1,0.74573]
[1642266631201,0.77984212,3351.4,3351.1,0.74573]
[1642266631405,0.77984212,3351.4,3351.2,3.12456695]
[1642266631603,0.77984212,3351.4,3351.3,2.33108397]
[1642266632000,0.77984212,3351.4,3351.3,0.429]
[1642266632200,0.77984212,3351.4,3351.3,2.36985687]
[1642266632405,7.499,3351.5,3351.3,2.36985687]
[1642266632652,7.499,3351.5,3351.4,1.91398514]
[1642266632854,7.499,3351.5,3351.4,2.34298514]
[1642266633349,0.777,3351.6,3351.5,0.74557]
[1642266633549,0.777,3351.6,3351.5,2.25137]
[1642266633748,0.777,3352.1,3351.5,5.69074749]
[1642266633954,0.045463,3352.0,3351.5,5.65752991]
[1642266634154,0.00113684,3351.8,3351.5,5.65752991]
[1642266634356,0.00113684,3351.8,3351.5,5.69186257]
[1642266634551,0.00113684,3351.8,3351.5,5.65752991]
[1642266634751,0.00113684,3351.8,3351.5,5.68896535]
[1642266635551,0.777,3352.0,3351.7,0.7455]
[1642266635751,0.777,3352.0,3351.8,2.46201115]
[1642266635952,0.727,3352.0,3351.9,2.77589612]
[1642266636151,0.727,3352.0,3351.9,3.32419612]
[1642266636434,0.72813685,3352.0,3351.9,4.75398015]
[1642266636722,0.72813685,3352.0,3351.9,4.71528054]
[1642266636918,0.72813685,3352.0,3351.9,4.63478379]
[1642266637318,0.69813685,3352.0,3351.9,4.63478379]
[1642266637518,1.47513685,3352.0,3351.9,4.63478379]
[1642266637717,2.4303,3352.1,3351.9,4.63478379]
[1642266637916,2.4303,3352.1,3352.0,1.94983973]
[1642266638119,2.4303,3352.1,3352.0,2.37883973]
[1642266638419,0.045463,3352.3,3352.0,2.37883973]
[1642266638620,0.045463,3352.5,3352.0,3.12429973]
[1642266638818,0.045463,3352.5,3352.1,1.41361458]
[1642266639020,0.82312713,3352.8,3352.2,2.10227272]
[1642266639021,0.1193,3352.8,3352.2,2.10227272]
[1642266639227,1.48082713,3353.0,3352.3,1.20862773]
[1642266639228,0.00113684,3352.4,3352.3,1.20862773]
[1642266639421,0.045463,3352.9,3352.3,3.61528158]
[1642266639620,0.045463,3352.9,3352.4,1.36382571]
[1642266639819,0.04830512,3352.9,3352.5,2.4056806]
[1642266640051,0.04830512,3352.9,3352.5,3.8474006]
[1642266640251,0.04830512,3352.9,3352.6,0.74532]
[1642266640453,0.00284212,3352.9,3352.6,0.74532]
[1642266640650,0.77984212,3352.9,3352.6,0.74532]
[1642266640849,0.045463,3352.7,3352.6,0.74532]
[1642266641049,0.045463,3352.7,3352.6,0.69532]
[1642266641256,0.04716827,3352.7,3352.6,0.69532]
[1642266642051,1.30201667,3352.7,3352.6,0.69532]
[1642266642252,1.30201667,3352.7,3352.4,1.32850431]
[1642266642452,0.164763,3352.6,3352.4,1.32850431]
[1642266642651,0.164763,3352.6,3352.1,3.429]
[1642266642652,2.007373,3352.3,3352.1,3.429]
[1642266642852,2.007373,3352.3,3352.2,1.47809638]
[1642266643051,2.007373,3352.3,3352.2,1.47923323]
[1642266643251,7.195373,3352.3,3352.2,1.42923323]
[1642266644000,7.972373,3352.3,3352.2,1.42923323]
[1642266645202,10.52333037,3352.3,3352.2,1.42923323]
[1642266646502,10.56879337,3352.3,3352.2,1.42923323]
[1642266647104,11.34579337,3352.3,3352.2,1.42923323]
[1642266647982,11.34579337,3352.3,3352.2,0.00113685]
[1642266648984,11.34579337,3352.3,3352.1,2.95113685]
[1642266649187,0.045463,3352.2,3352.1,2.95113685]
[1642266649588,0.55147745,3352.2,3352.1,2.95113685]
[1642266649784,3.10243482,3352.2,3352.1,2.95113685]
[1642266650385,3.99873482,3352.2,3352.1,2.95113685]
[1642266651414,5.24619655,3352.2,3352.1,2.95113685]
[1642266652815,6.13919655,3352.2,3352.1,2.95113685]
[1642266653719,6.91619655,3352.2,3352.1,2.95113685]
[1642266654117,15.76619655,3352.2,3352.1,2.95113685]
[1642266655359,2.49178342,3352.0,3351.9,0.1193]
[1642266655559,10.24954642,3352.0,3351.9,0.1193]
[1642266655758,11.62902787,3352.0,3351.9,0.12100526]
[1642266656357,12.13504232,3352.0,3351.9,0.12100526]
[1642266656758,12.91204232,3352.0,3351.9,0.12100526]
[1642266656960,10.22399296,3352.0,3351.4,1.1250688]
[1642266657160,0.045463,3351.6,3351.4,1.1250688]
[1642266657369,0.1193,3351.9,3351.5,0.0022737]
[1642266657561,10.05922996,3352.0,3351.5,0.0022737]
[1642266657762,9.54867851,3352.0,3351.5,0.0022737]
[1642266658261,0.893,3351.7,3351.5,0.0022737]
[1642266658463,0.893,3351.7,3351.4,1.86640752]
[1642266658914,0.893,3351.6,3351.4,1.86640752]
[1642266659813,2.52879117,3352.0,3351.4,4.86640752]
[1642266660016,1.07848958,3352.0,3351.5,0.03456172]
[1642266660211,1.07848958,3352.0,3351.6,1.49124]
[1642266660212,0.81642059,3351.7,3351.6,1.49124]
[1642266660411,0.50695612,3351.9,3351.6,1.49294527]
[1642266660612,1.48844641,3351.8,3351.6,1.49294527]
[1642266660812,1.48844641,3351.8,3351.7,0.00113685]
[1642266661012,0.50695612,3351.9,3351.7,0.00113685]
[1642266661213,0.45695612,3351.9,3351.7,3.48633685]
[1642266661411,1.07848958,3352.0,3351.7,1.48633685]
[1642266661612,1.07848958,3352.0,3351.7,1.91533685]
[1642266662011,1.554,3352.2,3351.7,1.94990175]
[1642266662212,1.554,3352.2,3351.8,1.29402945]
[1642266662410,0.00113684,3352.1,3351.8,1.29402945]
[1642266662669,0.00113684,3352.1,3351.7,2.69540185]
[1642266662859,1.554,3352.2,3351.8,0.5483]
[1642266663061,1.554,3352.2,3351.9,1.18963271]
[1642266663259,2.331,3352.2,3352.0,0.429]
[1642266663460,2.331,3352.2,3352.1,0.74548]
[1642266663659,2.331,3352.2,3352.1,1.29378]
[1642266664559,2.331,3352.2,3352.1,2.77031534]
[1642266665266,2.331,3352.2,3352.1,1.29378]
[1642266666410,3.108,3352.2,3352.1,1.29378]
[1642266667109,3.108,3352.2,3352.1,1.17448]
[1642266667709,3.108,3352.2,3352.1,0.429]
[1642266669516,3.885,3352.2,3352.1,3.429]
[1642266670165,4.0043,3352.2,3352.1,3.429]
[1642266670566,5.17330111,3352.2,3352.1,3.429]
[1642266671162,5.05400111,3352.2,3352.1,3.429]
[1642266672764,5.83100111,3352.2,3352.1,3.429]
[1642266673177,4.662,3352.2,3352.1,3.429]
[1642266675117,4.45802243,3352.2,3352.1,3.429]
[1642266675822,5.23502243,3352.2,3352.1,3.429]
[1642266677562,6.69601904,3352.2,3352.1,3.429]
[1642266677962,6.69601904,3352.2,3352.1,3.0]
[1642266678160,5.23502243,3352.2,3352.1,3.0]
[1642266678960,7.1219254,3352.2,3352.1,3.0]
[1642266680161,9.67296546,3352.2,3352.1,3.0]
[1642266681163,11.13396207,3352.2,3352.1,3.0]
[1642266681411,10.0240591,3352.2,3352.1,3.0]
[1642266682211,10.8010591,3352.2,3352.1,3.0]
[1642266682512,12.21571984,3352.2,3352.1,3.0]
[1642266682712,10.75472323,3352.2,3352.1,3.0]
[1642266683517,9.34006249,3352.2,3352.1,3.0]
[1642266685461,9.34006249,3352.2,3352.1,3.74547]
[1642266685462,9.8249777,3352.2,3352.1,3.74547]
[1642266685664,9.8249777,3352.2,3352.1,4.20920266]
[1642266686565,8.749373,3352.3,3352.2,5.43057176]
[1642266686761,8.39650972,3352.3,3352.2,7.86037743]